bitfinex/quotes_BTCUSD_20251207
["timestamp","ask_amount","ask_price","bid_price","bid_amount"]
[1765077202927,0.01115486,89647.0,89644.0,0.01115523]
[1765077203768,0.09480722,89649.0,89645.0,0.01115511]
[1765077204342,0.01115473,89648.0,89645.0,0.01115511]
[1765077204748,0.09480722,89649.0,89645.0,0.01115511]
[1765077205713,0.2342495,89648.0,89645.0,0.007]
[1765077205915,0.01115473,89648.0,89645.0,0.007]
[1765077206135,0.01115473,89648.0,89645.0,0.004]
[1765077206536,0.23424969,89648.0,89645.0,0.003]
[1765077206736,0.23424969,89648.0,89645.0,0.007]
[1765077207470,0.01115473,89648.0,89645.0,0.01815511]
[1765077208070,0.09480722,89649.0,89645.0,0.01515511]
[1765077208276,0.08365261,89649.0,89646.0,0.02196498]
[1765077208894,0.08365261,89649.0,89647.0,0.22309725]
[1765077209426,0.08315261,89649.0,89646.0,0.02196498]
[1765077209546,0.08315261,89649.0,89646.0,0.02596498]
[1765077209745,0.08315261,89649.0,89646.0,0.02196498]
[1765077209983,0.08315261,89649.0,89646.0,0.02396498]
[1765077210164,0.08315261,89649.0,89647.0,0.004]
[1765077210346,0.08315261,89649.0,89646.0,0.02396498]
[1765077211309,0.08315261,89649.0,89646.0,0.02196498]
[1765077211451,0.08315261,89649.0,89647.0,0.002]
[1765077211964,0.08315261,89649.0,89646.0,0.02596498]
[1765077212387,0.08315261,89649.0,89646.0,0.02796498]
[1765077212593,0.08315261,89649.0,89646.0,0.02396498]
[1765077212790,0.08315261,89649.0,89647.0,0.004]
[1765077213100,0.08315261,89649.0,89646.0,0.02396498]
[1765077213500,0.31740195,89649.0,89646.0,0.01681]
[1765077213737,0.22309725,89647.0,89646.0,0.01681]
[1765077213938,0.23837725,89647.0,89646.0,0.006]
[1765077214139,0.26226725,89647.0,89646.0,0.004]
[1765077214478,0.23837725,89647.0,89645.0,0.00128599]
[1765077214701,0.01115473,89648.0,89645.0,0.00128599]
[1765077214895,0.01115473,89648.0,89647.0,0.004]
[1765077215223,0.31740195,89649.0,89645.0,0.00128599]
[1765077215224,0.08315261,89649.0,89646.0,0.01315498]
[1765077215386,0.09430722,89649.0,89646.0,0.01715498]
[1765077215587,0.09430722,89649.0,89646.0,0.23825458]
[1765077215916,0.09430722,89649.0,89647.0,0.002]
[1765077216098,0.08315261,89649.0,89647.0,0.006]
[1765077216304,0.08315261,89649.0,89647.0,0.002]
[1765077217188,0.08315261,89649.0,89646.0,0.24506458]
[1765077217406,0.08315261,89649.0,89648.0,0.22309477]
[1765077218635,0.08315261,89649.0,89648.0,0.22509477]
[1765077218843,0.08315261,89649.0,89648.0,0.22909477]
[1765077219243,0.08315261,89649.0,89648.0,0.23038076]
[1765077222270,0.22307005,89658.0,89653.0,0.01115411]
[1765077222704,0.22307005,89658.0,89653.0,0.02196411]
[1765077223433,0.22307005,89658.0,89653.0,0.02296411]
[1765077223853,0.23422868,89656.0,89653.0,0.02296411]
[1765077224087,0.01115374,89656.0,89653.0,0.02296411]
[1765077224272,0.01115374,89656.0,89653.0,0.02496411]
[1765077224912,0.01115374,89656.0,89653.0,0.02396411]
[1765077225109,0.01115374,89656.0,89653.0,0.02296411]
[1765077225338,0.01115374,89656.0,89653.0,0.02496411]
[1765077226847,0.22307005,89658.0,89653.0,0.02496411]
[1765077227050,0.01115361,89657.0,89653.0,0.02496411]
[1765077227657,0.01115361,89657.0,89653.0,0.02196411]
[1765077228179,0.01115374,89656.0,89653.0,0.02496411]
[1765077228698,0.01246,89659.0,89654.0,0.01115399]
[1765077228876,0.02361336,89659.0,89655.0,0.01115386]
[1765077229099,0.02361336,89659.0,89656.0,0.01115374]
[1765077229473,0.01246,89659.0,89656.0,0.01115374]
[1765077230120,0.24668116,89659.0,89656.0,0.01115374]
[1765077230292,0.24668116,89659.0,89656.0,0.001]
[1765077231202,0.24668116,89659.0,89656.0,0.003]
[1765077235625,0.02361336,89659.0,89656.0,0.01415374]
[1765077236820,0.01246,89659.0,89657.0,0.22307237]
[1765077237027,0.01246,89659.0,89656.0,0.01415374]
[1765077237201,0.02361336,89659.0,89656.0,0.01415374]
[1765077238089,0.02361336,89659.0,89656.0,0.01315374]
[1765077238671,0.02361336,89659.0,89657.0,0.001]
[1765077239088,0.24668098,89659.0,89656.0,0.01315374]
[1765077239289,0.24668098,89659.0,89656.0,0.002]
[1765077239290,0.22307231,89658.0,89656.0,0.002]
[1765077239466,0.22307231,89658.0,89656.0,0.003]
[1765077239669,0.22307231,89658.0,89656.0,0.001]
[1765077239822,0.01115361,89657.0,89654.0,0.01115399]
[1765077240027,0.01115361,89657.0,89653.0,0.02196411]
[1765077240592,0.01115361,89657.0,89656.0,0.002]
[1765077241093,0.01115361,89657.0,89653.0,0.02196411]
[1765077241272,0.01115361,89657.0,89653.0,0.02396411]
[1765077241476,0.01115361,89657.0,89654.0,0.01115399]
[1765077241654,0.01115361,89657.0,89654.0,0.01315399]
[1765077241994,0.2342286,89656.0,89653.0,0.01081]
[1765077242204,0.01115399,89654.0,89650.0,0.01115448]
[1765077242434,0.01115411,89653.0,89650.0,0.01115448]
[1765077243207,0.01115399,89654.0,89651.0,0.01115436]
[1765077243524,0.01196,89655.0,89651.0,0.23424061]
[1765077244097,0.22307984,89654.0,89650.0,0.01415448]
[1765077244295,0.22307984,89654.0,89650.0,0.01115448]
[1765077244493,0.01115399,89654.0,89651.0,0.01115436]
[1765077244723,0.02311386,89655.0,89652.0,0.01115424]
[1765077245619,0.01196,89655.0,89652.0,0.01115424]
[1765077246428,0.01196,89655.0,89652.0,0.01315424]
[1765077246735,0.01196,89655.0,89652.0,0.01615424]
[1765077248031,0.01626,89653.0,89652.0,0.005]
[1765077248226,0.01658687,89653.0,89652.0,0.005]
[1765077248406,0.06381687,89653.0,89652.0,0.005]
[1765077248606,0.10777545,89653.0,89652.0,0.005]
[1765077249020,0.22311219,89641.0,89640.0,0.00024111]
[1765077249227,0.24998219,89641.0,89640.0,0.00024111]
[1765077249429,0.27491219,89641.0,89640.0,0.00024111]
[1765077250818,0.27491219,89641.0,89640.0,0.00124111]
[1765077250994,0.27491219,89641.0,89640.0,0.00224111]
[1765077257799,0.24974219,89641.0,89640.0,0.00224111]
[1765077258056,0.27462219,89641.0,89640.0,0.00224111]
[1765077280798,0.08365261,89642.0,89640.0,0.0035271]
[1765077281011,0.08365261,89642.0,89641.0,0.01081]
[1765077281306,0.08365261,89642.0,89641.0,0.01209599]
[1765077282301,0.08365261,89642.0,89641.0,0.01309599]
[1765077282844,0.08365261,89642.0,89641.0,0.01409599]
[1765077297123,0.09557261,89642.0,89641.0,0.00328599]
[1765077297355,0.13499261,89642.0,89641.0,0.002]
[1765077297559,0.15729261,89642.0,89641.0,0.002]
[1765077298515,0.24541219,89641.0,89640.0,0.00024111]
[1765077298722,0.28483219,89641.0,89640.0,0.00024111]
[1765077300760,0.26253219,89641.0,89640.0,0.00024111]
[1765077300998,0.28483219,89641.0,89640.0,0.00024111]
[1765077301341,0.29529165,89641.0,89640.0,0.00024111]
[1765077302561,0.72799671,89641.0,89640.0,0.00024111]
[1765077302963,0.79160673,89641.0,89640.0,0.00024111]
[1765077303294,0.76150568,89641.0,89640.0,0.00024111]
[1765077303719,0.76550568,89641.0,89640.0,0.00024111]
[1765077303903,0.76450568,89641.0,89640.0,0.00024111]
[1765077304444,0.76550568,89641.0,89640.0,0.00024111]
[1765077304642,0.76850568,89641.0,89640.0,0.00024111]
[1765077305059,0.65880062,89641.0,89640.0,0.00024111]
[1765077313756,5.65880062,89641.0,89640.0,0.00024111]
[1765077315812,0.65880062,89641.0,89640.0,0.00024111]
[1765077316058,5.65880062,89641.0,89640.0,0.00024111]
[1765077316598,3.91780062,89641.0,89640.0,0.00024111]
[1765077316797,5.44340062,89641.0,89640.0,0.00024111]
[1765077317006,5.48620568,89641.0,89640.0,0.00024111]
[1765077317210,5.46530568,89641.0,89640.0,0.00024111]
[1765077317814,0.76850568,89641.0,89640.0,0.00024111]
[1765077318114,4.76020568,89641.0,89640.0,0.00024111]
[1765077318936,5.76850568,89641.0,89640.0,0.00024111]
[1765077319964,5.32450568,89641.0,89640.0,0.00024111]
[1765077320164,1.27450062,89641.0,89640.0,0.00024111]
[1765077321149,1.83740062,89641.0,89640.0,0.00024111]
[1765077321320,1.75300062,89641.0,89640.0,0.00024111]
[1765077321522,1.74950062,89641.0,89640.0,0.00024111]
[1765077321699,1.74650062,89641.0,89640.0,0.00024111]
[1765077321883,1.94296512,89641.0,89640.0,0.00024111]
[1765077322232,1.67386512,89641.0,89640.0,0.00024111]
[1765077322431,1.61096512,89641.0,89640.0,0.00024111]
[1765077323103,4.03156512,89641.0,89640.0,0.00024111]
[1765077323906,0.71766512,89641.0,89640.0,0.00024111]
[1765077324145,3.26426512,89641.0,89640.0,0.00024111]
[1765077324352,3.22200062,89641.0,89640.0,0.00024111]
[1765077325008,4.29880062,89641.0,89640.0,0.00024111]
[1765077325183,3.36270062,89641.0,89640.0,0.00024111]
[1765077326043,3.75720062,89641.0,89640.0,0.00024111]
[1765077326561,3.7571786,89641.0,89640.0,0.00024111]
[1765077326757,3.86688366,89641.0,89640.0,0.00024111]
[1765077327010,4.29058366,89641.0,89640.0,0.00024111]
[1765077327572,4.25628366,89641.0,89640.0,0.00024111]
[1765077327976,4.39548366,89641.0,89640.0,0.00024111]
[1765077328182,4.37448366,89641.0,89640.0,0.00024111]
[1765077328841,4.34778366,89641.0,89640.0,0.00024111]
[1765077329016,4.35018366,89641.0,89640.0,0.00024111]
[1765077329567,4.25728366,89641.0,89640.0,0.00024111]
[1765077329968,4.39738366,89641.0,89640.0,0.00024111]
[1765077330170,3.39088366,89641.0,89640.0,0.00024111]
[1765077331140,2.10448366,89641.0,89640.0,0.00024111]
[1765077332111,3.78518366,89641.0,89640.0,0.00024111]
[1765077332946,3.75668366,89641.0,89640.0,0.00024111]
[1765077333173,3.99148366,89641.0,89640.0,0.00024111]
[1765077334213,4.59088366,89641.0,89640.0,0.00024111]
[1765077334613,4.56308366,89641.0,89640.0,0.00024111]
[1765077334835,3.3990786,89641.0,89640.0,0.00024111]
[1765077335037,2.7450786,89641.0,89640.0,0.00024111]
[1765077335443,2.7003786,89641.0,89640.0,0.00024111]
[1765077336010,2.1666786,89641.0,89640.0,0.00024111]
[1765077336354,2.1695786,89641.0,89640.0,0.00024111]
[1765077337236,2.1649786,89641.0,89640.0,0.00024111]
[1765077337395,0.6577786,89641.0,89640.0,0.00024111]
[1765077337595,0.6753786,89641.0,89640.0,0.00024111]
[1765077337996,0.31886963,89641.0,89640.0,0.00024111]
[1765077338834,0.35237553,89641.0,89640.0,0.00024111]
[1765077341693,0.33007553,89641.0,89640.0,0.00024111]
[1765077342681,0.29656963,89641.0,89640.0,0.00024111]
[1765077344366,0.25714963,89641.0,89640.0,0.00024111]
[1765077344671,0.24671219,89641.0,89640.0,0.00024111]
[1765077345224,0.26503219,89641.0,89640.0,0.00024111]
[1765077345452,0.26703219,89641.0,89640.0,0.00024111]
[1765077345626,0.24271219,89641.0,89640.0,0.00024111]
[1765077346619,0.24371219,89641.0,89640.0,0.00024111]
[1765077348228,0.24071219,89641.0,89640.0,0.00024111]
[1765077348902,0.22311219,89641.0,89640.0,0.00024111]
[1765077349075,0.24071219,89641.0,89640.0,0.00024111]
[1765077353152,0.28102219,89641.0,89640.0,0.00024111]
[1765077353358,0.30332219,89641.0,89640.0,0.00024111]
[1765077353554,0.28102219,89641.0,89640.0,0.00024111]
[1765077353785,0.30332219,89641.0,89640.0,0.00024111]
[1765077354192,0.28102219,89641.0,89640.0,0.00024111]
[1765077355285,0.28202219,89641.0,89640.0,0.00024111]
[1765077355724,0.30432219,89641.0,89640.0,0.00024111]
[1765077356476,0.30532219,89641.0,89640.0,0.00024111]
[1765077356852,0.30432219,89641.0,89640.0,0.00024111]
[1765077357257,0.30632219,89641.0,89640.0,0.00024111]
[1765077359888,0.31676613,89641.0,89640.0,0.00024111]
[1765077360125,0.35027192,89641.0,89640.0,0.00024111]
[1765077374208,0.32797192,89641.0,89640.0,0.00024111]
[1765077376233,0.35027192,89641.0,89640.0,0.00024111]
[1765077379470,0.33267192,89641.0,89640.0,0.00024111]
[1765077379668,0.35027192,89641.0,89640.0,0.00024111]
[1765077386434,0.3502878,89641.0,89640.0,0.00024111]
[1765077400360,0.35029062,89641.0,89640.0,0.00024111]
[1765077400562,0.22314953,89626.0,89625.0,0.01081]
[1765077400805,0.22314953,89626.0,89625.0,0.01209599]
[1765077401159,0.22314953,89626.0,89625.0,0.01278931]
[1765077401967,0.22314953,89626.0,89625.0,0.01378931]
[1765077402488,0.22314953,89626.0,89625.0,0.01478931]
[1765077407009,0.08365261,89627.0,89625.0,0.01478931]
[1765077407223,0.30680203,89627.0,89625.0,0.01409599]
[1765077407819,0.30680203,89627.0,89625.0,0.01309599]
[1765077408114,0.30680203,89627.0,89625.0,0.01409599]
[1765077408327,0.30680203,89627.0,89625.0,0.01309599]
[1765077408476,0.30680203,89627.0,89625.0,0.01409599]
[1765077411824,0.30680203,89627.0,89625.0,0.00328599]
[1765077411992,0.31922203,89627.0,89625.0,0.00328599]
[1765077412191,0.34256203,89627.0,89625.0,0.00328599]
[1765077412452,0.34256203,89627.0,89626.0,0.00066317]
[1765077412910,0.33466203,89627.0,89626.0,0.00066317]
[1765077413475,0.35726203,89627.0,89626.0,0.00066317]
[1765077413949,0.35726203,89627.0,89626.0,0.00166317]
[1765077414304,0.35726203,89627.0,89626.0,0.00266317]
[1765077417062,0.37956203,89627.0,89626.0,0.00266317]
[1765077422382,0.33466203,89627.0,89626.0,0.00266317]
[1765077422786,0.35726203,89627.0,89626.0,0.00266317]
[1765077423289,0.36807203,89627.0,89626.0,0.00266317]
[1765077423884,0.39037203,89627.0,89626.0,0.00166317]
[1765077424222,0.39037203,89627.0,89626.0,0.00066317]
[1765077425303,0.39027161,89627.0,89626.0,0.00066317]
[1765077426258,0.40073038,89627.0,89626.0,0.00066317]
[1765077426696,5.40073038,89627.0,89626.0,0.00066317]
[1765077426873,5.42482752,89627.0,89626.0,0.00066317]
[1765077427492,5.42582752,89627.0,89626.0,0.00066317]
[1765077427697,5.42882752,89627.0,89626.0,0.00066317]
[1765077428313,5.53853258,89627.0,89626.0,0.00066317]
[1765077429167,5.42882752,89627.0,89626.0,0.00066317]
[1765077430117,5.13532752,89627.0,89626.0,0.00066317]
[1765077430323,4.87633038,89627.0,89626.0,0.00066317]
[1765077430753,4.90193038,89627.0,89626.0,0.00066317]
[1765077431269,4.87223038,89627.0,89626.0,0.00066317]
[1765077431419,4.84253038,89627.0,89626.0,0.00066317]
[1765077431623,4.80803038,89627.0,89626.0,0.00066317]
[1765077431943,4.86688968,89627.0,89626.0,0.00066317]
[1765077432149,4.83028968,89627.0,89626.0,0.00066317]
[1765077432575,4.81983091,89627.0,89626.0,0.00066317]
[1765077432730,4.89253091,89627.0,89626.0,0.00066317]
[1765077433372,4.82157161,89627.0,89626.0,0.00066317]
[1765077433748,4.81847161,89627.0,89626.0,0.00066317]
[1765077433930,4.78417161,89627.0,89626.0,0.00066317]
[1765077434535,4.79461212,89627.0,89626.0,0.00066317]
[1765077434735,4.83191212,89627.0,89626.0,0.00066317]
[1765077434981,4.82147161,89627.0,89626.0,0.00066317]
[1765077435508,5.17533167,89627.0,89626.0,0.00066317]
[1765077435851,5.74813167,89627.0,89626.0,0.00066317]
[1765077436052,5.71727161,89627.0,89626.0,0.00066317]
[1765077436804,5.72771154,89627.0,89626.0,0.00066317]
[1765077437669,5.71727161,89627.0,89626.0,0.00066317]
[1765077437802,5.72771118,89627.0,89626.0,0.00066317]
[1765077445838,4.60441118,89627.0,89626.0,0.00066317]
[1765077446336,4.10541118,89627.0,89626.0,0.00066317]
[1765077446535,4.10831118,89627.0,89626.0,0.00066317]
[1765077446737,4.08071118,89627.0,89626.0,0.00066317]
[1765077447670,4.19941118,89627.0,89626.0,0.00066317]
[1765077447858,4.14611118,89627.0,89626.0,0.00066317]
[1765077448652,4.31561118,89627.0,89626.0,0.00066317]
[1765077449456,4.33967031,89627.0,89626.0,0.00066317]
[1765077449657,4.65897031,89627.0,89626.0,0.00066317]
[1765077449897,4.74987031,89627.0,89626.0,0.00066317]
[1765077450288,4.68587031,89627.0,89626.0,0.00066317]
[1765077450924,4.75097031,89627.0,89626.0,0.00066317]
[1765077451405,4.63167031,89627.0,89626.0,0.00066317]
[1765077451612,4.56787031,89627.0,89626.0,0.00066317]
[1765077452020,4.60557031,89627.0,89626.0,0.00066317]
[1765077452195,4.54117031,89627.0,89626.0,0.00066317]
[1765077453026,4.66807031,89627.0,89626.0,0.00066317]
[1765077453946,4.76937031,89627.0,89626.0,0.00066317]
[1765077455010,4.89307031,89627.0,89626.0,0.00066317]
[1765077455979,4.89137031,89627.0,89626.0,0.00066317]
[1765077456342,4.86337031,89627.0,89626.0,0.00066317]
[1765077456943,4.94307031,89627.0,89626.0,0.00066317]
[1765077457254,4.88797031,89627.0,89626.0,0.00066317]
[1765077457641,2.24337031,89627.0,89626.0,0.00066317]
[1765077458094,2.24277031,89627.0,89626.0,0.00066317]
[1765077458301,2.03527031,89627.0,89626.0,0.00066317]
[1765077459006,2.03477031,89627.0,89626.0,0.00066317]
[1765077459522,2.05237031,89627.0,89626.0,0.00066317]
[1765077459884,1.93007031,89627.0,89626.0,0.00066317]
[1765077460127,1.93117031,89627.0,89626.0,0.00066317]
[1765077461125,2.26292129,89627.0,89626.0,0.00066317]
[1765077461999,1.93882129,89627.0,89626.0,0.00066317]
[1765077462201,2.26402129,89627.0,89626.0,0.00066317]
[1765077463052,1.87792129,89627.0,89626.0,0.00066317]
[1765077463206,3.07602129,89627.0,89626.0,0.00066317]
[1765077463412,2.65472129,89627.0,89626.0,0.00066317]
[1765077464378,3.23982129,89627.0,89626.0,0.00066317]
[1765077464657,3.22442129,89627.0,89626.0,0.00066317]
[1765077464861,3.17912129,89627.0,89626.0,0.00066317]
[1765077465023,2.30512129,89627.0,89626.0,0.00066317]
[1765077465369,2.80912129,89627.0,89626.0,0.00066317]
[1765077465597,2.34732129,89627.0,89626.0,0.00066317]
[1765077466223,2.34672129,89627.0,89626.0,0.00066317]
[1765077466638,2.14962129,89627.0,89626.0,0.00066317]
[1765077467407,2.44952129,89627.0,89626.0,0.00066317]
[1765077467608,2.37072129,89627.0,89626.0,0.00066317]
[1765077467817,2.18362129,89627.0,89626.0,0.00066317]
[1765077468274,0.76942129,89627.0,89626.0,0.00066317]
[1765077468436,2.17122129,89627.0,89626.0,0.00066317]
[1765077468843,2.1712477,89627.0,89626.0,0.00066317]
[1765077469406,2.3564477,89627.0,89626.0,0.00066317]
[1765077470479,2.9043477,89627.0,89626.0,0.00066317]
[1765077471097,2.8091477,89627.0,89626.0,0.00066317]
[1765077471501,2.7994477,89627.0,89626.0,0.00066317]
[1765077471908,2.3739477,89627.0,89626.0,0.00066317]
[1765077472108,2.1855477,89627.0,89626.0,0.00066317]
[1765077472526,2.7865477,89627.0,89626.0,0.00066317]
[1765077472708,2.3649477,89627.0,89626.0,0.00066317]
[1765077473099,1.2167477,89627.0,89626.0,0.00066317]
[1765077473503,1.1581477,89627.0,89626.0,0.00066317]
[1765077474622,1.8104477,89627.0,89626.0,0.00066317]
[1765077475777,2.0951477,89627.0,89626.0,0.00066317]
[1765077476704,2.0962477,89627.0,89626.0,0.00066317]
[1765077478686,2.0970477,89627.0,89626.0,0.00066317]
[1765077479709,0.7694477,89627.0,89626.0,0.00066317]
[1765077479911,2.0999477,89627.0,89626.0,0.00066317]
[1765077480849,3.2743477,89627.0,89626.0,0.00066317]
[1765077481769,0.7694477,89627.0,89626.0,0.00066317]
[1765077481927,3.3047477,89627.0,89626.0,0.00066317]
[1765077482331,2.9856477,89627.0,89626.0,0.00066317]
[1765077482656,2.9737477,89627.0,89626.0,0.00066317]
[1765077483437,2.6842477,89627.0,89626.0,0.00066317]
[1765077483931,1.8491477,89627.0,89626.0,0.00066317]
[1765077484132,1.6612477,89627.0,89626.0,0.00066317]
[1765077484541,1.5221477,89627.0,89626.0,0.00066317]
[1765077484741,0.7694477,89627.0,89626.0,0.00066317]
[1765077489208,1.1845477,89627.0,89626.0,0.00066317]
[1765077490089,5.87915276,89627.0,89626.0,0.00066317]
[1765077490469,5.7694477,89627.0,89626.0,0.00066317]
[1765077491610,5.7664477,89627.0,89626.0,0.00066317]
[1765077491976,5.7694477,89627.0,89626.0,0.00066317]
[1765077492460,5.7714477,89627.0,89626.0,0.00066317]
[1765077495348,5.80156952,89627.0,89626.0,0.00066317]
[1765077495554,5.86068358,89627.0,89626.0,0.00066317]
[1765077503440,5.86067401,89627.0,89626.0,0.00066317]
[1765077504866,5.58745995,89627.0,89626.0,0.00066317]
[1765077505207,5.30715995,89627.0,89626.0,0.00066317]
[1765077505413,5.30705995,89627.0,89626.0,0.00066317]
[1765077505673,5.25185995,89627.0,89626.0,0.00066317]
[1765077505892,2.08645995,89627.0,89626.0,0.00066317]
[1765077506072,2.07375995,89627.0,89626.0,0.00066317]
[1765077506441,2.24875995,89627.0,89626.0,0.00066317]
[1765077506882,2.21375995,89627.0,89626.0,0.00066317]
[1765077507483,1.93145995,89627.0,89626.0,0.00066317]
[1765077507658,1.51753813,89627.0,89626.0,0.00066317]
[1765077507998,0.44843813,89627.0,89626.0,0.00066317]
[1765077508357,0.37049813,89627.0,89626.0,0.00066317]
[1765077508531,0.33030161,89627.0,89626.0,0.00194916]
[1765077508732,0.33030161,89627.0,89626.0,0.01275916]
[1765077508890,0.33030161,89627.0,89626.0,0.05290916]
[1765077509233,0.10715219,89627.0,89626.0,0.05290916]
[1765077509432,0.10715219,89627.0,89626.0,0.02856916]
[1765077510023,0.10115219,89627.0,89626.0,0.02856916]
[1765077510230,0.08355219,89627.0,89626.0,0.02856916]
[1765077510428,0.08555219,89627.0,89626.0,0.02856916]
[1765077510635,0.08455219,89627.0,89626.0,0.02856916]
[1765077510827,0.08355219,89627.0,89626.0,0.02856916]
[1765077511024,0.08355219,89627.0,89626.0,0.02956916]
[1765077511935,0.08355219,89627.0,89626.0,0.01375916]
[1765077512818,0.08355219,89627.0,89626.0,0.02956916]
[1765077516133,0.08355219,89627.0,89626.0,0.05390916]
[1765077517128,0.08355219,89627.0,89626.0,0.02956916]
[1765077518522,0.08355219,89627.0,89626.0,0.05390916]
[1765077524260,0.08355219,89627.0,89626.0,0.07622411]
[1765077525536,0.08355219,89627.0,89626.0,0.05390916]
[1765077532117,0.08355219,89627.0,89626.0,0.05439916]
[1765077542603,0.08355219,89627.0,89626.0,0.01375916]
[1765077543291,0.10666219,89627.0,89626.0,0.00294916]
[1765077543437,0.15280219,89627.0,89626.0,0.00294916]
[1765077545348,0.15280219,89627.0,89626.0,0.00194916]
[1765077545560,0.15280219,89627.0,89626.0,0.00294916]
[1765077548043,0.17040219,89627.0,89626.0,0.00294916]
[1765077556774,0.02196847,89640.0,89626.0,0.05474916]
[1765077556895,0.02196847,89640.0,89639.0,0.02852599]
[1765077557310,0.01115486,89647.0,89640.0,0.22311468]
[1765077557519,0.01115486,89647.0,89640.0,0.24083067]
[1765077557721,0.01115511,89645.0,89640.0,0.26539067]
[1765077558127,0.01115523,89644.0,89640.0,0.26539067]
[1765077558328,0.01115536,89643.0,89640.0,0.04227599]
[1765077558825,0.01115536,89643.0,89640.0,0.04627599]
[1765077559275,0.01115523,89644.0,89640.0,0.04627599]
[1765077560243,0.01115536,89643.0,89640.0,0.04627599]
[1765077562717,0.01115536,89643.0,89640.0,0.0465171]
[1765077565482,0.01115498,89646.0,89640.0,0.0465171]
[1765077566244,0.08365261,89648.0,89640.0,0.0465171]
[1765077566466,0.08365261,89648.0,89640.0,0.06882856]
[1765077566668,0.08365261,89648.0,89640.0,0.07998354]
[1765077568444,0.08365261,89648.0,89640.0,0.06882856]
[1765077569632,0.01115386,89655.0,89640.0,0.06882856]
[1765077569836,0.01115399,89654.0,89640.0,0.0800138]
[1765077570407,0.01115399,89654.0,89640.0,0.10232526]
[1765077570700,0.01115399,89654.0,89640.0,0.09832526]
[1765077571076,0.01115386,89655.0,89640.0,0.0820138]
[1765077571276,0.01115386,89655.0,89640.0,0.10432526]
[1765077573252,0.01115399,89654.0,89640.0,0.10432526]
[1765077573451,0.01115386,89655.0,89640.0,0.10432526]
[1765077574884,0.01115399,89654.0,89640.0,0.10432526]
[1765077578836,0.01115411,89653.0,89640.0,0.10432526]
[1765077581369,0.01115424,89652.0,89640.0,0.10432526]
[1765077581507,0.01115411,89653.0,89640.0,0.10432526]
[1765077582938,0.01115424,89652.0,89640.0,0.10432526]
[1765077585683,0.01115411,89653.0,89640.0,0.10432526]
[1765077586378,0.01115411,89653.0,89640.0,0.14426688]
[1765077587306,0.01115424,89652.0,89640.0,0.10432526]
[1765077588335,0.01115411,89653.0,89640.0,0.10432526]
[1765077588538,0.01115386,89655.0,89640.0,0.10432526]
[1765077589934,0.01115399,89654.0,89640.0,0.10432526]
[1765077590142,0.01115386,89655.0,89640.0,0.10432526]
[1765077591167,0.01115399,89654.0,89640.0,0.10432526]
[1765077591379,0.01115386,89655.0,89640.0,0.10432526]
[1765077591785,0.01115399,89654.0,89640.0,0.10432526]
[1765077592013,0.01115386,89655.0,89640.0,0.10432526]
[1765077595052,0.01115399,89654.0,89640.0,0.10432526]
[1765077595498,0.01115386,89655.0,89640.0,0.10432526]
[1765077595896,0.01115399,89654.0,89640.0,0.10432526]
[1765077598312,0.01115386,89655.0,89640.0,0.10432526]
[1765077599151,0.01115411,89653.0,89640.0,0.10432526]
[1765077599432,0.01115386,89655.0,89640.0,0.10432526]
[1765077600850,0.01115399,89654.0,89640.0,0.10432526]
[1765077601056,0.01115386,89655.0,89640.0,0.10432526]
[1765077602357,0.01115399,89654.0,89640.0,0.10432526]
[1765077604066,0.01115411,89653.0,89640.0,0.10432526]
[1765077604265,0.01115399,89654.0,89640.0,0.10432526]
[1765077606365,0.01115411,89653.0,89640.0,0.16422909]
[1765077606620,0.01115411,89653.0,89640.0,0.10432526]
[1765077606815,0.01115399,89654.0,89640.0,0.10432526]
[1765077607046,0.01115411,89653.0,89640.0,0.10432526]
[1765077607243,0.01115399,89654.0,89640.0,0.16422909]
[1765077607692,0.01115386,89655.0,89640.0,0.16422909]
[1765077609483,0.01115399,89654.0,89640.0,0.16422909]
[1765077612278,0.01115411,89653.0,89640.0,0.16422909]
[1765077613031,0.01115399,89654.0,89640.0,0.16422909]
[1765077617568,0.01115411,89653.0,89640.0,0.16422909]
[1765077617718,0.01115399,89654.0,89640.0,0.16422909]
[1765077618801,0.01115411,89653.0,89640.0,0.16422909]
[1765077619056,0.22308955,89651.0,89640.0,0.16422909]
[1765077619233,0.01115436,89651.0,89640.0,0.16422909]
[1765077619527,0.01115424,89652.0,89640.0,0.16422909]
[1765077619760,0.01115448,89650.0,89640.0,0.16422909]
[1765077619890,0.2342399,89652.0,89640.0,0.16422909]
[1765077620327,0.01115436,89651.0,89640.0,0.16422909]
[1765077620524,0.01115424,89652.0,89640.0,0.16422909]
[1765077620701,0.01115411,89653.0,89640.0,0.16422909]
[1765077620702,0.01115386,89655.0,89640.0,0.16422909]
[1765077621103,0.01115386,89655.0,89640.0,0.10432526]
[1765077622053,0.01115399,89654.0,89640.0,0.10432526]
[1765077622367,0.01115411,89653.0,89640.0,0.10432526]
[1765077622516,0.01115399,89654.0,89640.0,0.10432526]
[1765077624425,0.01115424,89652.0,89640.0,0.10432526]
[1765077624626,0.01115399,89654.0,89640.0,0.10432526]
[1765077625785,0.01115411,89653.0,89640.0,0.10432526]
[1765077627219,0.01115399,89654.0,89640.0,0.10432526]
[1765077628509,0.01115411,89653.0,89640.0,0.10432526]
[1765077628810,0.01115436,89651.0,89640.0,0.10432526]
[1765077628970,0.01115424,89652.0,89640.0,0.10432526]
[1765077629170,0.01115436,89651.0,89640.0,0.10432526]
[1765077629598,0.01115424,89652.0,89640.0,0.10432526]
[1765077631390,0.01115461,89649.0,89640.0,0.16436109]
[1765077631577,0.01115448,89650.0,89640.0,0.16436109]
[1765077631756,0.01115436,89651.0,89640.0,0.16436109]
[1765077632159,0.01115448,89650.0,89640.0,0.16436109]
[1765077632358,0.01115436,89651.0,89640.0,0.16436109]
[1765077632565,0.01115424,89652.0,89640.0,0.16436109]
[1765077633987,0.01115399,89654.0,89640.0,0.16436109]
[1765077634193,0.01115461,89649.0,89640.0,0.16436109]
[1765077634389,0.01115436,89651.0,89640.0,0.16436109]
[1765077634781,0.01115424,89652.0,89640.0,0.16436109]
[1765077635185,0.01115448,89650.0,89640.0,0.16436109]
[1765077635431,0.01115436,89651.0,89640.0,0.16436109]
[1765077636031,0.01115424,89652.0,89640.0,0.16436109]
[1765077639403,0.01115411,89653.0,89640.0,0.16436109]
[1765077639608,0.01115436,89651.0,89640.0,0.16436109]
[1765077640358,0.01115424,89652.0,89640.0,0.16436109]
[1765077640977,0.01115411,89653.0,89640.0,0.16436109]
[1765077641626,0.01115399,89654.0,89640.0,0.16436109]
[1765077642077,0.01115411,89653.0,89640.0,0.16436109]
[1765077642285,0.01115436,89651.0,89640.0,0.16436109]
[1765077642430,0.01115436,89651.0,89640.0,0.13980109]
[1765077642756,0.24597651,89653.0,89640.0,0.16469109]
[1765077643861,0.01115424,89652.0,89640.0,0.16469109]
[1765077644683,0.02289411,89653.0,89640.0,0.16469109]
[1765077645178,0.01115424,89652.0,89640.0,0.16469109]
[1765077646812,0.02289411,89653.0,89640.0,0.16469109]
[1765077647022,0.01115436,89651.0,89640.0,0.16469109]
[1765077647942,0.01115424,89652.0,89640.0,0.16469109]
[1765077648483,0.01115448,89650.0,89640.0,0.16469109]